[Event "Titled Tuesday Blitz May 9 Late 2023"]
[White "Ibrahimli, Murad"]
[Black "Moussard, Jules"]
[WhiteFideId "13410229"]
[BlackFideId "642908"]
[WhiteElo "2364"]
[BlackElo "2610"]
[Result "0-1"]
[Round "05"]
[TimeControl "180+2"]
[Date "2023.05.09"]
[WhiteClock "0:00:02"]
[BlackClock "0:00:03"]

1. d4 {[%clk 0:03:00]}  d5 {[%clk 0:02:59]} 2. c4 {[%clk 0:03:01]}  e6 {[%clk 0:03:00]} 3. Nc3 {[%clk 0:03:01]}  a6 {[%clk 0:03:00]} 4. cxd5 {[%clk 0:03:01]}  exd5 {[%clk 0:03:01]} 5. Bf4 {[%clk 0:03:00]}  Nf6 {[%clk 0:02:57]} 6. e3 {[%clk 0:02:58]}  Bd6 {[%clk 0:02:57]} 7. Bg5 {[%clk 0:02:57]}  c6 {[%clk 0:02:53]} 8. Bd3 {[%clk 0:02:57]}  O-O {[%clk 0:02:52]} 9. Qc2 {[%clk 0:02:56]}  h6 {[%clk 0:02:51]} 10. Bh4 {[%clk 0:02:55]}  Be6 {[%clk 0:02:51]} 11. Nge2 {[%clk 0:02:55]}  Nbd7 {[%clk 0:02:51]} 12. f3 {[%clk 0:02:52]}  c5 {[%clk 0:02:49]} 13. O-O {[%clk 0:02:48]}  Re8 {[%clk 0:02:46]} 14. Bf2 {[%clk 0:02:43]}  Rc8 {[%clk 0:02:40]} 15. h3 {[%clk 0:02:27]}  b5 {[%clk 0:02:39]} 16. dxc5 {[%clk 0:02:26]}  Nxc5 {[%clk 0:02:36]} 17. a3 {[%clk 0:02:24]}  Nfd7 {[%clk 0:02:27]} 18. Bh7+ {[%clk 0:02:09]}  Kh8 {[%clk 0:02:26]} 19. Bf5 {[%clk 0:02:10]}  Ne5 {[%clk 0:02:00]} 20. Bxe6 {[%clk 0:02:03]}  fxe6 {[%clk 0:01:57]} 21. Rad1 {[%clk 0:02:01]}  Qf6 {[%clk 0:01:41]} 22. e4 {[%clk 0:01:37]}  Qg6 {[%clk 0:01:25]} 23. Kh1 {[%clk 0:01:34]}  Nc4 {[%clk 0:01:19]} 24. b4 {[%clk 0:01:12]}  Nd7 {[%clk 0:01:07]} 25. Qb3 {[%clk 0:01:12]}  Nf6 {[%clk 0:01:04]} 26. exd5 {[%clk 0:01:00]}  exd5 {[%clk 0:01:03]} 27. Rg1 {[%clk 0:00:36]}  Ne3 {[%clk 0:00:41]} 28. Rd2 {[%clk 0:00:33]}  Qg5 {[%clk 0:00:37]} 29. h4 {[%clk 0:00:28]}  Qf5 {[%clk 0:00:30]} 30. Nd4 {[%clk 0:00:24]}  Qg6 {[%clk 0:00:24]} 31. Nce2 {[%clk 0:00:22]}  Nc4 {[%clk 0:00:22]} 32. Rdd1 {[%clk 0:00:21]}  Be5 {[%clk 0:00:22]} 33. Qd3 {[%clk 0:00:21]}  Qh5 {[%clk 0:00:18]} 34. g4 {[%clk 0:00:20]}  Qf7 {[%clk 0:00:18]} 35. Rc1 {[%clk 0:00:20]}  Nd7 {[%clk 0:00:12]} 36. g5 {[%clk 0:00:19]}  Bxd4 {[%clk 0:00:11]} 37. Nxd4 {[%clk 0:00:19]}  Nde5 {[%clk 0:00:11]} 38. Qd1 {[%clk 0:00:16]}  Rf8 {[%clk 0:00:09]} 39. gxh6 {[%clk 0:00:15]}  gxh6 {[%clk 0:00:10]} 40. Rg3 {[%clk 0:00:12]}  Rg8 {[%clk 0:00:10]} 41. Qe2 {[%clk 0:00:10]}  Qf4 {[%clk 0:00:10]} 42. Rxg8+ {[%clk 0:00:10]}  Rxg8 {[%clk 0:00:11]} 43. Rd1 {[%clk 0:00:10]}  Rf8 {[%clk 0:00:05]} 44. Rg1 {[%clk 0:00:08]}  Qf6 {[%clk 0:00:03]} 45. Rg3 {[%clk 0:00:06]}  Qxh4+ {[%clk 0:00:03]} 46. Kg2 {[%clk 0:00:07]}  Qf6 {[%clk 0:00:02]} 47. Rh3 {[%clk 0:00:05]}  Rg8+ {[%clk 0:00:02]} 48. Bg3 {[%clk 0:00:05]}  Kh7 {[%clk 0:00:02]} 49. Qc2+ {[%clk 0:00:05]}  Rg6 {[%clk 0:00:02]} 50. f4 {[%clk 0:00:05]}  Ne3+ {[%clk 0:00:03]} 51. Kh2 {[%clk 0:00:04]}  Nxc2 {[%clk 0:00:04]} 52. f5 {[%clk 0:00:05]}  Rg4 {[%clk 0:00:03]} 53. Ne6 {[%clk 0:00:02]}  Qxf5 {[%clk 0:00:03]} 0-1


[Site "https://www.chess.com"]

[Event "Titled Tuesday Blitz May 9 Late 2023"]
[White "Zhigalko, Sergei"]
[Black "Martinez Alcantara, Jose Eduardo"]
[WhiteFideId "13502956"]
[BlackFideId "3805662"]
[WhiteElo "2626"]
[BlackElo "2711"]
[Result "0-1"]
[Round "05"]
[TimeControl "180+2"]
[Date "2023.05.09"]
[WhiteClock "0:00:00"]
[BlackClock "0:00:04"]

1. e4 {[%clk 0:03:00]}  c5 {[%clk 0:02:59]} 2. c3 {[%clk 0:03:00]}  e6 {[%clk 0:02:59]} 3. d4 {[%clk 0:03:00]}  d5 {[%clk 0:02:59]} 4. e5 {[%clk 0:03:01]}  Bd7 {[%clk 0:02:58]} 5. Nf3 {[%clk 0:03:02]}  Qb6 {[%clk 0:02:57]} 6. Bd3 {[%clk 0:03:02]}  cxd4 {[%clk 0:02:57]} 7. cxd4 {[%clk 0:03:02]}  Bb5 {[%clk 0:02:57]} 8. Nc3 {[%clk 0:02:53]}  Bxd3 {[%clk 0:02:50]} 9. Qxd3 {[%clk 0:02:53]}  Nc6 {[%clk 0:02:47]} 10. O-O {[%clk 0:02:53]}  h6 {[%clk 0:02:40]} 11. Be3 {[%clk 0:02:24]}  Nge7 {[%clk 0:02:39]} 12. Na4 {[%clk 0:02:19]}  Qc7 {[%clk 0:02:02]} 13. Rac1 {[%clk 0:02:11]}  Nf5 {[%clk 0:01:57]} 14. a3 {[%clk 0:02:10]}  Be7 {[%clk 0:01:48]} 15. Bd2 {[%clk 0:02:05]}  O-O {[%clk 0:01:32]} 16. g4 {[%clk 0:02:05]}  Nh4 {[%clk 0:01:32]} 17. Nxh4 {[%clk 0:02:05]}  Bxh4 {[%clk 0:01:33]} 18. f4 {[%clk 0:02:03]}  Rae8 {[%clk 0:01:09]} 19. Nc5 {[%clk 0:02:00]}  Be7 {[%clk 0:01:08]} 20. b4 {[%clk 0:01:54]}  Bxc5 {[%clk 0:01:07]} 21. Rxc5 {[%clk 0:01:55]}  Qd7 {[%clk 0:01:06]} 22. b5 {[%clk 0:01:54]}  Ne7 {[%clk 0:01:05]} 23. Bb4 {[%clk 0:01:45]}  f5 {[%clk 0:00:48]} 24. exf6 {[%clk 0:01:09]}  Rxf6 {[%clk 0:00:47]} 25. Rfc1 {[%clk 0:01:10]}  Rc8 {[%clk 0:00:40]} 26. Qc2 {[%clk 0:00:23]}  Rxc5 {[%clk 0:00:40]} 27. Qxc5 {[%clk 0:00:23]}  Rf7 {[%clk 0:00:27]} 28. a4 {[%clk 0:00:23]}  Ng6 {[%clk 0:00:15]} 29. Qc8+ {[%clk 0:00:21]}  Qxc8 {[%clk 0:00:15]} 30. Rxc8+ {[%clk 0:00:21]}  Kh7 {[%clk 0:00:16]} 31. f5 {[%clk 0:00:08]}  exf5 {[%clk 0:00:16]} 32. gxf5 {[%clk 0:00:09]}  Nh4 {[%clk 0:00:17]} 33. f6 {[%clk 0:00:07]}  gxf6 {[%clk 0:00:14]} 34. Kf2 {[%clk 0:00:08]}  Kg6 {[%clk 0:00:11]} 35. Ra8 {[%clk 0:00:07]}  a6 {[%clk 0:00:07]} 36. bxa6 {[%clk 0:00:04]}  bxa6 {[%clk 0:00:08]} 37. Rxa6 {[%clk 0:00:05]}  Rb7 {[%clk 0:00:09]} 38. Bc5 {[%clk 0:00:02]}  Rb2+ {[%clk 0:00:08]} 39. Kg3 {[%clk 0:00:01]}  Kg5 {[%clk 0:00:05]} 40. Be7 {[%clk 0:00:01]}  Nf5+ {[%clk 0:00:04]} 41. Kf3 {[%clk 0:00:01]}  Nxe7 {[%clk 0:00:05]} 42. Ra5 {[%clk 0:00:01]}  Ra2 {[%clk 0:00:05]} 43. Ra7 {[%clk 0:00:01]}  Ra3+ {[%clk 0:00:06]} 44. Kg2 {[%clk 0:00:01]}  Nf5 {[%clk 0:00:03]} 45. Ra8 {[%clk 0:00:02]}  Kf4 {[%clk 0:00:04]} 46. a5 {[%clk 0:00:03]}  Ra2+ {[%clk 0:00:03]} 47. Kh3 {[%clk 0:00:04]}  Ra3+ {[%clk 0:00:04]} 48. Kg2 {[%clk 0:00:03]}  Nh4+ {[%clk 0:00:04]} 49. Kf2 {[%clk 0:00:03]}  Ra2+ {[%clk 0:00:05]} 50. Ke1 {[%clk 0:00:03]}  Nf3+ {[%clk 0:00:05]} 51. Kd1 {[%clk 0:00:04]}  Ke3 {[%clk 0:00:06]} 52. Kc1 {[%clk 0:00:04]}  Kd3 {[%clk 0:00:06]} 53. a6 {[%clk 0:00:04]}  Nxd4 {[%clk 0:00:06]} 54. a7 {[%clk 0:00:04]}  Nb5 {[%clk 0:00:06]} 55. Rd8 {[%clk 0:00:04]}  Nc3 {[%clk 0:00:04]} 56. Rxd5+ {[%clk 0:00:03]}  Nxd5 {[%clk 0:00:03]} 57. a8=Q {[%clk 0:00:00]}  Rxa8 {[%clk 0:00:04]} 0-1


[Site "https://www.chess.com"]

[Event "Titled Tuesday Blitz May 9 Late 2023"]
[White "Pranav, V"]
[Black "Ibarra Jerez, Jose Carlos"]
[WhiteFideId "25060783"]
[BlackFideId "2226332"]
[WhiteElo "2515"]
[BlackElo "2638"]
[Result "0-1"]
[Round "05"]
[TimeControl "180+2"]
[Date "2023.05.09"]
[WhiteClock "0:00:03"]
[BlackClock "0:00:53"]

1. e4 {[%clk 0:03:00]}  c5 {[%clk 0:02:59]} 2. Nf3 {[%clk 0:03:00]}  Nc6 {[%clk 0:02:59]} 3. Bb5 {[%clk 0:03:00]}  e6 {[%clk 0:02:59]} 4. Bxc6 {[%clk 0:03:00]}  bxc6 {[%clk 0:02:59]} 5. O-O {[%clk 0:02:59]}  Ne7 {[%clk 0:02:56]} 6. d3 {[%clk 0:02:58]}  Ng6 {[%clk 0:02:56]} 7. Ng5 {[%clk 0:02:58]}  f6 {[%clk 0:02:53]} 8. Nh3 {[%clk 0:02:58]}  d5 {[%clk 0:02:52]} 9. Nc3 {[%clk 0:02:57]}  Be7 {[%clk 0:02:46]} 10. Qh5 {[%clk 0:02:55]}  O-O {[%clk 0:02:46]} 11. f4 {[%clk 0:02:55]}  c4 {[%clk 0:02:40]} 12. dxc4 {[%clk 0:02:50]}  Ba6 {[%clk 0:02:36]} 13. Be3 {[%clk 0:02:44]}  Bxc4 {[%clk 0:02:34]} 14. Rfd1 {[%clk 0:02:42]}  Qa5 {[%clk 0:02:26]} 15. Nf2 {[%clk 0:02:27]}  Rab8 {[%clk 0:02:19]} 16. Rab1 {[%clk 0:02:19]}  Rxb2 {[%clk 0:02:09]} 17. Rxb2 {[%clk 0:02:15]}  Qxc3 {[%clk 0:02:10]} 18. Bd4 {[%clk 0:02:16]}  Nxf4 {[%clk 0:02:04]} 19. Bxc3 {[%clk 0:01:22]}  Nxh5 {[%clk 0:02:03]} 20. exd5 {[%clk 0:01:23]}  cxd5 {[%clk 0:01:59]} 21. Bd2 {[%clk 0:01:20]}  Bc5 {[%clk 0:01:47]} 22. Re1 {[%clk 0:01:12]}  e5 {[%clk 0:01:33]} 23. g4 {[%clk 0:01:08]}  Nf4 {[%clk 0:01:33]} 24. Bxf4 {[%clk 0:01:08]}  exf4 {[%clk 0:01:34]} 25. Kg2 {[%clk 0:01:09]}  Be3 {[%clk 0:01:31]} 26. Rb7 {[%clk 0:00:58]}  d4 {[%clk 0:01:29]} 27. Rd7 {[%clk 0:00:58]}  Bb5 {[%clk 0:01:28]} 28. Rd6 {[%clk 0:00:57]}  Rc8 {[%clk 0:01:24]} 29. Ne4 {[%clk 0:00:43]}  Rxc2+ {[%clk 0:01:21]} 30. Kf3 {[%clk 0:00:34]}  Bc6 {[%clk 0:01:21]} 31. Rxc6 {[%clk 0:00:33]}  Rxc6 {[%clk 0:01:21]} 32. Rb1 {[%clk 0:00:34]}  Rb6 {[%clk 0:01:18]} 33. Ra1 {[%clk 0:00:27]}  d3 {[%clk 0:01:08]} 34. Rd1 {[%clk 0:00:18]}  d2 {[%clk 0:01:08]} 35. Ke2 {[%clk 0:00:16]}  Rb2 {[%clk 0:01:07]} 36. a4 {[%clk 0:00:15]}  Ra2 {[%clk 0:01:05]} 37. Nc3 {[%clk 0:00:15]}  Ra3 {[%clk 0:00:53]} 38. Kd3 {[%clk 0:00:15]}  Bb6 {[%clk 0:00:54]} 39. Ke4 {[%clk 0:00:03]}  Rxc3 {[%clk 0:00:53]} 0-1


[Site "https://www.chess.com"]

[Event "Titled Tuesday Blitz May 9 Late 2023"]
[White "Paravyan, David"]
[Black "Grigorov, Grigor"]
[WhiteFideId "4194985"]
[BlackFideId "2907313"]
[WhiteElo "2563"]
[BlackElo "2510"]
[Result "1-0"]
[Round "05"]
[TimeControl "180+2"]
[Date "2023.05.09"]
[WhiteClock "0:01:10"]
[BlackClock "0:00:00"]

1. e4 {[%clk 0:03:00]}  c6 {[%clk 0:03:00]} 2. d4 {[%clk 0:03:01]}  d5 {[%clk 0:03:00]} 3. e5 {[%clk 0:03:00]}  Bf5 {[%clk 0:02:59]} 4. Nf3 {[%clk 0:03:00]}  e6 {[%clk 0:02:59]} 5. Be2 {[%clk 0:03:01]}  c5 {[%clk 0:02:57]} 6. Be3 {[%clk 0:03:00]}  Qb6 {[%clk 0:02:53]} 7. Nc3 {[%clk 0:02:57]}  c4 {[%clk 0:02:51]} 8. Rb1 {[%clk 0:02:53]}  Bb4 {[%clk 0:02:50]} 9. O-O {[%clk 0:02:54]}  Bxc3 {[%clk 0:02:50]} 10. bxc3 {[%clk 0:02:55]}  Qa6 {[%clk 0:02:50]} 11. Nh4 {[%clk 0:02:44]}  Ne7 {[%clk 0:02:44]} 12. g4 {[%clk 0:02:45]}  Be4 {[%clk 0:02:43]} 13. f3 {[%clk 0:02:45]}  Bg6 {[%clk 0:02:42]} 14. f4 {[%clk 0:02:46]}  Be4 {[%clk 0:02:42]} 15. Bf3 {[%clk 0:02:45]}  Nbc6 {[%clk 0:02:41]} 16. Qe2 {[%clk 0:02:33]}  O-O-O {[%clk 0:02:37]} 17. Bf2 {[%clk 0:02:33]}  Bxf3 {[%clk 0:02:33]} 18. Nxf3 {[%clk 0:02:34]}  h5 {[%clk 0:02:32]} 19. h3 {[%clk 0:02:24]}  hxg4 {[%clk 0:02:31]} 20. hxg4 {[%clk 0:02:25]}  Qa3 {[%clk 0:01:47]} 21. Qd2 {[%clk 0:02:18]}  f5 {[%clk 0:01:39]} 22. exf6 {[%clk 0:02:16]}  gxf6 {[%clk 0:01:39]} 23. Qe3 {[%clk 0:02:13]}  Qd6 {[%clk 0:01:30]} 24. Bg3 {[%clk 0:01:59]}  Rdg8 {[%clk 0:01:28]} 25. Nh2 {[%clk 0:01:59]}  Rh3 {[%clk 0:01:08]} 26. Rf3 {[%clk 0:01:58]}  Qd7 {[%clk 0:00:34]} 27. Re1 {[%clk 0:01:56]}  e5 {[%clk 0:00:23]} 28. fxe5 {[%clk 0:01:52]}  fxe5 {[%clk 0:00:23]} 29. dxe5 {[%clk 0:01:52]}  d4 {[%clk 0:00:20]} 30. Qe4 {[%clk 0:01:46]}  dxc3 {[%clk 0:00:17]} 31. Kg2 {[%clk 0:01:43]}  Rgh8 {[%clk 0:00:15]} 32. e6 {[%clk 0:01:35]}  Qd2+ {[%clk 0:00:15]} 33. Re2 {[%clk 0:01:34]}  Qh6 {[%clk 0:00:15]} 34. Qf4 {[%clk 0:01:23]}  Qxf4 {[%clk 0:00:11]} 35. Rxf4 {[%clk 0:01:23]}  Nd5 {[%clk 0:00:10]} 36. Rxc4 {[%clk 0:01:18]}  Kd8 {[%clk 0:00:06]} 37. Nf3 {[%clk 0:01:16]}  Ke7 {[%clk 0:00:04]} 38. Rc5 {[%clk 0:01:14]}  Ncb4 {[%clk 0:00:00]} 39. Nd4 {[%clk 0:01:10]} 1-0


[Site "https://www.chess.com"]

[Event "Titled Tuesday Blitz May 9 Late 2023"]
[White "Rasulov, Vugar"]
[Black "Leiva, Gianmarco"]
[WhiteFideId "13402390"]
[BlackFideId "3804399"]
[WhiteElo "2509"]
[BlackElo "2365"]
[Result "1-0"]
[Round "05"]
[TimeControl "180+2"]
[Date "2023.05.09"]
[WhiteClock "0:00:52"]
[BlackClock "0:00:00"]

1. e4 {[%clk 0:02:56]}  c5 {[%clk 0:02:58]} 2. Nf3 {[%clk 0:02:57]}  d6 {[%clk 0:02:59]} 3. d4 {[%clk 0:02:57]}  cxd4 {[%clk 0:02:59]} 4. Nxd4 {[%clk 0:02:58]}  Nf6 {[%clk 0:03:00]} 5. Nc3 {[%clk 0:02:58]}  a6 {[%clk 0:03:00]} 6. Be2 {[%clk 0:02:58]}  e5 {[%clk 0:02:56]} 7. Nf3 {[%clk 0:02:58]}  Be7 {[%clk 0:02:56]} 8. Bg5 {[%clk 0:02:57]}  Nbd7 {[%clk 0:02:49]} 9. a4 {[%clk 0:02:57]}  b6 {[%clk 0:02:47]} 10. Nd2 {[%clk 0:02:54]}  Bb7 {[%clk 0:02:45]} 11. O-O {[%clk 0:02:54]}  Rc8 {[%clk 0:02:44]} 12. Re1 {[%clk 0:02:49]}  O-O {[%clk 0:02:40]} 13. Bf1 {[%clk 0:02:43]}  Rc7 {[%clk 0:02:36]} 14. Nc4 {[%clk 0:02:33]}  Rc6 {[%clk 0:02:03]} 15. Be3 {[%clk 0:01:53]}  Qb8 {[%clk 0:01:57]} 16. f3 {[%clk 0:01:53]}  Nc5 {[%clk 0:01:39]} 17. Bf2 {[%clk 0:01:50]}  Bc8 {[%clk 0:01:22]} 18. Ne3 {[%clk 0:01:48]}  Be6 {[%clk 0:01:18]} 19. Ncd5 {[%clk 0:01:47]}  Bxd5 {[%clk 0:00:43]} 20. exd5 {[%clk 0:01:48]}  Rc7 {[%clk 0:00:39]} 21. b4 {[%clk 0:01:47]}  Ncd7 {[%clk 0:00:37]} 22. Bxa6 {[%clk 0:01:46]}  g6 {[%clk 0:00:37]} 23. Bb5 {[%clk 0:01:45]}  Nh5 {[%clk 0:00:32]} 24. Bc6 {[%clk 0:01:42]}  Nf4 {[%clk 0:00:27]} 25. Kh1 {[%clk 0:01:39]}  Bf6 {[%clk 0:00:22]} 26. Rb1 {[%clk 0:01:27]}  Rfc8 {[%clk 0:00:20]} 27. a5 {[%clk 0:01:26]}  Rxc6 {[%clk 0:00:17]} 28. dxc6 {[%clk 0:01:26]}  Rxc6 {[%clk 0:00:18]} 29. a6 {[%clk 0:01:20]}  b5 {[%clk 0:00:16]} 30. a7 {[%clk 0:01:20]}  Qxa7 {[%clk 0:00:14]} 31. Ng4 {[%clk 0:01:04]}  Qc7 {[%clk 0:00:13]} 32. Be3 {[%clk 0:01:01]}  Bg5 {[%clk 0:00:07]} 33. Bxf4 {[%clk 0:00:57]}  Bxf4 {[%clk 0:00:07]} 34. Qd5 {[%clk 0:00:56]}  Rxc2 {[%clk 0:00:03]} 35. Qxb5 {[%clk 0:00:57]}  h5 {[%clk 0:00:02]} 36. Qxd7 {[%clk 0:00:57]}  hxg4 {[%clk 0:00:01]} 37. Qxc7 {[%clk 0:00:57]}  Rxc7 {[%clk 0:00:02]} 38. fxg4 {[%clk 0:00:57]}  d5 {[%clk 0:00:02]} 39. g3 {[%clk 0:00:56]}  Bd2 {[%clk 0:00:02]} 40. Rxe5 {[%clk 0:00:56]}  d4 {[%clk 0:00:02]} 41. Rd5 {[%clk 0:00:56]}  Be3 {[%clk 0:00:01]} 42. b5 {[%clk 0:00:56]}  Rb7 {[%clk 0:00:02]} 43. Kg2 {[%clk 0:00:54]}  Kg7 {[%clk 0:00:01]} 44. Kf3 {[%clk 0:00:54]}  Kf6 {[%clk 0:00:01]} 45. b6 {[%clk 0:00:52]}  Ke6 {[%clk 0:00:01]} 46. Rd8 {[%clk 0:00:52]}  f6 {[%clk 0:00:01]} 47. Ke4 {[%clk 0:00:51]}  f5+ {[%clk 0:00:01]} 48. gxf5+ {[%clk 0:00:51]}  gxf5+ {[%clk 0:00:02]} 49. Kd3 {[%clk 0:00:52]}  Ke7 {[%clk 0:00:02]} 50. Rxd4 {[%clk 0:00:49]}  Bxd4 {[%clk 0:00:02]} 51. Kxd4 {[%clk 0:00:49]}  Kd6 {[%clk 0:00:03]} 52. h4 {[%clk 0:00:50]}  Kc6 {[%clk 0:00:02]} 53. Ke5 {[%clk 0:00:51]}  Rg7 {[%clk 0:00:01]} 54. b7 {[%clk 0:00:51]}  Rxb7 {[%clk 0:00:01]} 55. Rxb7 {[%clk 0:00:51]}  Kxb7 {[%clk 0:00:00]} 56. Kxf5 {[%clk 0:00:52]} 1-0


[Site "https://www.chess.com"]

[Event "Titled Tuesday Blitz May 9 Late 2023"]
[White "Tatarinov, Dmitry"]
[Black "Kamsky, Gata"]
[WhiteFideId "24160067"]
[BlackFideId "2000024"]
[WhiteElo "2326"]
[BlackElo "2660"]
[Result "0-1"]
[Round "05"]
[TimeControl "180+2"]
[Date "2023.05.09"]
[WhiteClock "0:00:04"]
[BlackClock "0:00:25"]

1. d4 {[%clk 0:02:59]}  Nf6 {[%clk 0:02:58]} 2. Bf4 {[%clk 0:02:59]}  d6 {[%clk 0:02:57]} 3. Nc3 {[%clk 0:02:57]}  Nbd7 {[%clk 0:02:45]} 4. Nf3 {[%clk 0:02:56]}  Nh5 {[%clk 0:02:35]} 5. e3 {[%clk 0:02:40]}  Nxf4 {[%clk 0:02:34]} 6. exf4 {[%clk 0:02:41]}  g6 {[%clk 0:02:20]} 7. h4 {[%clk 0:02:40]}  Nf6 {[%clk 0:02:18]} 8. Bd3 {[%clk 0:02:27]}  Bg7 {[%clk 0:02:14]} 9. O-O {[%clk 0:02:27]}  O-O {[%clk 0:02:11]} 10. Re1 {[%clk 0:02:27]}  Bg4 {[%clk 0:02:09]} 11. Nb1 {[%clk 0:02:15]}  Nd5 {[%clk 0:01:57]} 12. c3 {[%clk 0:01:24]}  Nxf4 {[%clk 0:01:51]} 13. Bf1 {[%clk 0:01:17]}  e5 {[%clk 0:01:39]} 14. dxe5 {[%clk 0:01:16]}  dxe5 {[%clk 0:01:39]} 15. Nbd2 {[%clk 0:01:09]}  c6 {[%clk 0:01:27]} 16. Qb3 {[%clk 0:01:08]}  Qc7 {[%clk 0:01:26]} 17. g3 {[%clk 0:00:58]}  Nd5 {[%clk 0:01:20]} 18. Bg2 {[%clk 0:00:53]}  Rad8 {[%clk 0:01:16]} 19. a4 {[%clk 0:00:52]}  a5 {[%clk 0:01:08]} 20. Nc4 {[%clk 0:00:51]}  Rfe8 {[%clk 0:01:08]} 21. Ng5 {[%clk 0:00:47]}  h6 {[%clk 0:01:03]} 22. Ne4 {[%clk 0:00:47]}  b6 {[%clk 0:01:00]} 23. Ned2 {[%clk 0:00:21]}  Rb8 {[%clk 0:00:45]} 24. Nf1 {[%clk 0:00:07]}  Be6 {[%clk 0:00:42]} 25. Qc2 {[%clk 0:00:06]}  f5 {[%clk 0:00:39]} 26. Rad1 {[%clk 0:00:06]}  e4 {[%clk 0:00:37]} 27. Nfe3 {[%clk 0:00:06]}  b5 {[%clk 0:00:36]} 28. axb5 {[%clk 0:00:05]}  Nxe3 {[%clk 0:00:34]} 29. Nxe3 {[%clk 0:00:06]}  cxb5 {[%clk 0:00:34]} 30. Nd5 {[%clk 0:00:05]}  Qf7 {[%clk 0:00:32]} 31. Nf4 {[%clk 0:00:06]}  Bb3 {[%clk 0:00:32]} 32. Qc1 {[%clk 0:00:06]}  g5 {[%clk 0:00:30]} 33. hxg5 {[%clk 0:00:05]}  hxg5 {[%clk 0:00:30]} 34. Nh3 {[%clk 0:00:03]}  Bxd1 {[%clk 0:00:30]} 35. Nxg5 {[%clk 0:00:04]}  Qg6 {[%clk 0:00:28]} 36. Rxd1 {[%clk 0:00:04]}  Bh6 {[%clk 0:00:28]} 37. f4 {[%clk 0:00:02]}  exf3 {[%clk 0:00:27]} 38. Bxf3 {[%clk 0:00:01]}  Qxg5 {[%clk 0:00:26]} 39. Bd5+ {[%clk 0:00:02]}  Kh8 {[%clk 0:00:26]} 40. Qxg5 {[%clk 0:00:03]}  Bxg5 {[%clk 0:00:26]} 41. Kg2 {[%clk 0:00:03]}  Rbd8 {[%clk 0:00:25]} 42. Rh1+ {[%clk 0:00:04]} 0-1


[Site "https://www.chess.com"]

[Event "Titled Tuesday Blitz May 9 Late 2023"]
[White "Xiong, Jeffery"]
[Black "Seemann, Jakub"]
[WhiteFideId "2047640"]
[BlackFideId "21874697"]
[WhiteElo "2726"]
[BlackElo "2364"]
[Result "1-0"]
[Round "05"]
[TimeControl "180+2"]
[Date "2023.05.09"]
[WhiteClock "0:01:50"]
[BlackClock "0:00:00"]

1. e4 {[%clk 0:03:00]}  c6 {[%clk 0:02:58]} 2. Nf3 {[%clk 0:03:00]}  d5 {[%clk 0:02:58]} 3. d3 {[%clk 0:03:01]}  g6 {[%clk 0:02:57]} 4. e5 {[%clk 0:03:01]}  Bg7 {[%clk 0:02:57]} 5. d4 {[%clk 0:03:01]}  f6 {[%clk 0:02:57]} 6. Bf4 {[%clk 0:02:52]}  Nd7 {[%clk 0:02:55]} 7. exf6 {[%clk 0:02:41]}  Ngxf6 {[%clk 0:02:56]} 8. Bd3 {[%clk 0:02:41]}  O-O {[%clk 0:02:55]} 9. O-O {[%clk 0:02:41]}  Ne4 {[%clk 0:02:47]} 10. Be3 {[%clk 0:02:33]}  e5 {[%clk 0:02:44]} 11. dxe5 {[%clk 0:02:29]}  Nxe5 {[%clk 0:02:44]} 12. Bxe4 {[%clk 0:02:29]}  dxe4 {[%clk 0:02:42]} 13. Nxe5 {[%clk 0:02:28]}  Bxe5 {[%clk 0:02:38]} 14. Qxd8 {[%clk 0:02:19]}  Rxd8 {[%clk 0:02:37]} 15. Nc3 {[%clk 0:02:20]}  Bf5 {[%clk 0:02:14]} 16. h3 {[%clk 0:02:19]}  h5 {[%clk 0:02:13]} 17. Rfd1 {[%clk 0:02:19]}  b6 {[%clk 0:02:12]} 18. a4 {[%clk 0:02:18]}  Rxd1+ {[%clk 0:01:43]} 19. Rxd1 {[%clk 0:02:18]}  Kf7 {[%clk 0:01:38]} 20. Ra1 {[%clk 0:02:16]}  a5 {[%clk 0:00:48]} 21. Bxb6 {[%clk 0:02:01]}  Rb8 {[%clk 0:00:48]} 22. Bxa5 {[%clk 0:02:01]}  Rxb2 {[%clk 0:00:47]} 23. Rc1 {[%clk 0:02:02]}  Bf4 {[%clk 0:00:33]} 24. Rb1 {[%clk 0:01:59]}  Rxc2 {[%clk 0:00:32]} 25. Nd1 {[%clk 0:01:59]}  e3 {[%clk 0:00:24]} 26. Nxe3 {[%clk 0:01:56]}  Bxe3 {[%clk 0:00:24]} 27. fxe3 {[%clk 0:01:57]}  Rxg2+ {[%clk 0:00:17]} 28. Kxg2 {[%clk 0:01:58]}  Bxb1 {[%clk 0:00:17]} 29. Bd8 {[%clk 0:01:58]}  Bd3 {[%clk 0:00:11]} 30. Kf3 {[%clk 0:01:56]}  Ke6 {[%clk 0:00:12]} 31. e4 {[%clk 0:01:52]}  Kd7 {[%clk 0:00:09]} 32. Bg5 {[%clk 0:01:50]}  Ke6 {[%clk 0:00:08]} 33. Ke3 {[%clk 0:01:50]}  Bf1 {[%clk 0:00:07]} 34. h4 {[%clk 0:01:50]}  c5 {[%clk 0:00:06]} 35. a5 {[%clk 0:01:51]}  Kd6 {[%clk 0:00:06]} 36. Bd8 {[%clk 0:01:50]}  Ke6 {[%clk 0:00:06]} 37. Bb6 {[%clk 0:01:48]}  Kd6 {[%clk 0:00:06]} 38. Kf4 {[%clk 0:01:48]}  Bd3 {[%clk 0:00:05]} 39. e5+ {[%clk 0:01:49]}  Ke6 {[%clk 0:00:05]} 40. Bxc5 {[%clk 0:01:49]}  Kd5 {[%clk 0:00:05]} 41. Be7 {[%clk 0:01:49]}  Ke6 {[%clk 0:00:05]} 42. Bf6 {[%clk 0:01:49]}  Kd5 {[%clk 0:00:06]} 43. Ke3 {[%clk 0:01:50]}  Ba6 {[%clk 0:00:04]} 44. Kd2 {[%clk 0:01:50]}  Bf1 {[%clk 0:00:03]} 45. Kc3 {[%clk 0:01:51]}  Be2 {[%clk 0:00:01]} 46. Kb4 {[%clk 0:01:51]}  Kc6 {[%clk 0:00:02]} 47. e6 {[%clk 0:01:52]}  Kd6 {[%clk 0:00:03]} 48. e7 {[%clk 0:01:52]}  Kd7 {[%clk 0:00:03]} 49. Kc5 {[%clk 0:01:52]}  Bf3 {[%clk 0:00:01]} 50. Kb6 {[%clk 0:01:52]}  Bc6 {[%clk 0:00:01]} 51. Ka7 {[%clk 0:01:50]}  Bf3 {[%clk 0:00:01]} 52. Kb8 {[%clk 0:01:50]}  Be2 {[%clk 0:00:02]} 53. Kb7 {[%clk 0:01:51]}  Bf3+ {[%clk 0:00:02]} 54. Kb6 {[%clk 0:01:51]}  Bc6 {[%clk 0:00:02]} 55. Bg5 {[%clk 0:01:50]}  Bf3 {[%clk 0:00:00]} 56. a6 {[%clk 0:01:50]} 1-0


[Site "https://www.chess.com"]